Cogmind - Beta 13 @@@ ROGUE MODE // 2024.04.01 @ 12:11:30 Player: weedlord420 Result: Destroyed by L-31 Rogue with Katana Performance ------------- Evolutions (0) 0 Regions Visited (4) 800 Robots Destroyed (41) 205 Value Destroyed (733) 733 Prototype IDs (5) 100 Alien Tech Used (0) 0 Bonus (300) 300 TOTAL SCORE: 2138 Bonus ------- Aligned with FarCom 300 Cogmind --------- Core Integrity 0/250 Matter 118/300 Energy 100/100 System Corruption 0% Temperature Cool (31) Movement Treading (160) Location -9/Mines Parts ------- > --- POWER (1) -------- (None) > --- PROPULSION (2) --- Light Treads Light Treads > --- UTILITY (2) ------ Small Storage Unit Core Shielding > --- WEAPON (2) ------- Light Assault Rifle Light Assault Rifle > --- INVENTORY (8) ---- Improved Heat Sink Improved Terrain Scanner Seismic Detector AWS/Autocannon Rocket Launcher Peak State ------------ > --- POWER ------------ Ion Engine > --- PROPULSION ------- Light Treads Light Treads > --- UTILITY ---------- Small Storage Unit Improved Terrain Scanner > --- WEAPON ----------- Light Assault Rifle Light Assault Rifle > --- INVENTORY -------- Improved Heat Sink Seismic Detector Core Shielding Light Armor Plating AWS/Autocannon Rocket Launcher [Rating: 12] Favorites ----------- Power Ion Engine Engine Ion Engine Power Core Light Nuclear Core Propulsion Light Treads Treads Light Treads Leg Aluminum Leg Utility Small Storage Unit Device Improved Terrain Scanner Storage Small Storage Unit Processor Signal Interpreter Protection Light Armor Plating Weapon Light Assault Rifle Ballistic Gun Light Assault Rifle Launcher Rocket Launcher Build | -11 -10 -10 -10 -9 ------- Run | Yrd Mat Min Exi Min Slots Evolved . | . . . . . Power . | . . . . . Propulsion . | . . . . . Utility . | . . . . . Weapon . | . . . . . Parts Attached 31 | 7 10 9 3 2 Power 4 | 1 2 1 . . Engine 3 | 1 1 1 . . Core 1 | . 1 . . . Reactor . | . . . . . Propulsion 9 | 2 5 1 1 . Treads 4 | . 2 1 1 . Leg 5 | 2 3 . . . Wheel . | . . . . . Hover . | . . . . . Flight . | . . . . . Utility 7 | 2 1 2 . 2 Device 2 | 1 . 1 . . Storage 1 | 1 . . . . Processor 1 | . 1 . . . Hackware . | . . . . . Protection 3 | . . 1 . 2 Artifact . | . . . . . Weapon 11 | 2 2 5 2 . Energy Gun . | . . . . . Energy Cannon . | . . . . . Ballistic Gun 9 | 2 2 3 2 . Ballistic Cannon . | . . . . . Launcher 2 | . . 2 . . Special Weapon . | . . . . . Impact Weapon . | . . . . . Slashing Weapon . | . . . . . Piercing Weapon . | . . . . . Special Melee Weapon . | . . . . . Unidentified Prototypes . | . . . . . Parts Lost 4 | . 1 2 . 1 Power 2 | . 1 . . 1 Propulsion 2 | . . 2 . . Utility . | . . . . . Weapon . | . . . . . Highest Loss Streak 1 | . 1 1 . 1 To Critical Strikes . | . . . . . Average Slot Usage (%) 94 | . 99 98 86 100 Engine 11 | . 8 14 14 14 Core 1 | . 4 . . . Treads 18 | . 16 26 15 28 Leg 4 | . 11 . . . Device 9 | . 7 8 14 . Storage 14 | . 14 14 14 14 Processor 3 | . 6 2 . . Ballistic Gun 19 | . 28 25 3 28 Launcher 8 | . . 2 24 . Naked Turns . | . . . . . Heaviest Build 18 | 13 13 18 18 . Greatest Support 40 | 20 40 40 40 . Greatest Overweight (x) 1 | . 1 . . . Average Overweight (x) . | . . . . . Largest Inventory Capacity 8 | 8 8 8 8 8 Average Capacity 7 | 7 8 8 8 8 Most Carried 8 | 5 8 8 8 8 Average Carried 7 | 2 7 7 7 7 Final Capacity 8 | 8 8 8 8 8 Final Carried 8 | 2 8 8 8 7 Class Distribution -------------------- 52% | Mutant 47% | Scavenger-Mutant Dominant Class ---------------- Scavenger-Mutant | -10/Materials Scavenger-Mutant | -10/Mines Mutant | -10/Exiles Mutant | -9/Mines Resources | -11 -10 -10 -10 -9 ----------- Run | Yrd Mat Min Exi Min Matter Collected 711 | 218 310 183 . . Remotely . | . . . . . Salvage Created 1237 | 104 720 413 . . Parts 99 | 9 48 42 . . Haulers Intercepted 2 | . 2 . . . Recyclers Shooed 3 | . 3 . . . Parts Field Recycled . | . . . . . Retrieved Matter . | . . . . . Parts Self-Destructed . | . . . . . Prevented . | . . . . . Kills | -11 -10 -10 -10 -9 ------- Run | Yrd Mat Min Exi Min Combat Hostiles Destroyed 23 | . 9 14 . . Guns 20 | . 9 11 . . AOE 3 | . . 3 . . Classes Destroyed 6 | 2 4 . . . Tunneler 9 | 1 3 5 . . Hauler 2 | . 2 . . . Recycler 4 | 1 3 . . . Watcher 3 | . 3 . . . Swarmer 10 | . 3 7 . . Grunt 13 | . 6 7 . . Best Kill Streak 4 | 1 2 4 . . Combat Bots Only 4 | . 2 4 . . Max Kills in Single Turn 3 | 1 1 3 . . Gunslinging . | . . . . . Exploded 2 | . . 2 . . Melee . | . . . . . Uniques/NPCs Destroyed . | . . . . . Combat | -11 -10 -10 -10 -9 -------- Run | Yrd Mat Min Exi Min Hostile Shots Fired 142 | . 41 78 . 23 Missed 35 | . 9 24 . 2 Damage Taken 1461 | . 472 638 . 351 Core 266 | . 74 133 . 59 Absorbed by Shields . | . . . . . Redirected to Shielding 5 | . . . . 5 Core Remaining (%) 100 | 100 . . . . Volleys Fired 131 | 5 71 47 . 8 Largest 2 | 2 2 2 . 2 Hottest 63 | 40 40 63 . 40 Shots Fired 262 | 10 142 94 . 16 Gun 253 | 10 142 85 . 16 Cannon . | . . . . . Launcher 9 | . . 9 . . Special . | . . . . . Kinetic 253 | 10 142 85 . 16 Thermal . | . . . . . Explosive 9 | . . 9 . . Electromagnetic . | . . . . . Robot Hit Streak 7 | 4 7 7 . 6 Robot Miss Streak 4 | 1 4 4 . 2 Penetration Max . | . . . . . Secondary Targets . | . . . . . Shots Hit Robots 154 | 6 80 57 . 11 Core Hits 86 | 4 47 33 . 2 Critical Kills 1 | . 1 . . . Critical Parts Destroyed 2 | . 1 1 . . Critical Strikes 3 | . 2 1 . . Destroy 3 | . 2 1 . . Melee Attacks . | . . . . . Impact . | . . . . . Slashing . | . . . . . Piercing . | . . . . . Sneak Attacks . | . . . . . Combat Hostiles . | . . . . . Follow-up Attacks . | . . . . . Damage Inflicted 1750 | 71 656 934 . 89 Guns 1354 | 71 656 538 . 89 Cannons . | . . . . . Explosions 396 | . . 396 . . Melee . | . . . . . Ramming . | . . . . . Kinetic 1354 | 71 656 538 . 89 Thermal . | . . . . . Explosive 396 | . . 396 . . Electromagnetic . | . . . . . Impact . | . . . . . Slashing . | . . . . . Piercing . | . . . . . Highest Corruption . | . . . . . Average Corruption . | . . . . . Corruption Purged . | . . . . . Corruption Blocked . | . . . . . Overload Shots . | . . . . . Overflow Damage 15 | . . 15 . . Projectiles . | . . . . . Explosions 15 | . . 15 . . Melee . | . . . . . Knockbacks . | . . . . . Impact . | . . . . . Kinetic . | . . . . . Secondary . | . . . . . Self-Inflicted Damage 47 | . . 47 . . Shots 2 | . . 2 . . Rammed . | . . . . . Targets Rammed . | . . . . . Kicked . | . . . . . Crushed . | . . . . . Highest Temperature 49 | . 36 28 . 49 Average Temperature 9 | . 7 8 . 23 Received Heat Transfer 534 | . 192 252 . 90 Siege Activations . | . . . . . Robots Corrupted . | . . . . . Combat Hostiles . | . . . . . Parts Fried . | . . . . . Impact Corruptions . | . . . . . Robots Melted . | . . . . . Combat Hostiles . | . . . . . Parts Melted . | . . . . . Heat Transferred . | . . . . . Parts Sabotaged . | . . . . . Parts Stolen . | . . . . . Parts Stripped . | . . . . . Power Chain Reactions . | . . . . . Alert | -11 -10 -10 -10 -9 ------- Run | Yrd Mat Min Exi Min Peak Influence 246 | 10 174 246 . . Initial 11 | . 6 11 . . Average 70 | 3 59 98 . . Maximum Alert Level 1 | . . 1 . . Low Security (%) 94 | 100 100 82 . 100 Level 1 5 | . . 17 . . Level 2 . | . . . . . Level 3 . | . . . . . Level 4 . | . . . . . Level 5 . | . . . . . High Security . | . . . . . Max Security . | . . . . . Squads Dispatched 3 | . 3 . . . Investigation 3 | . 3 . . . Extermination . | . . . . . Reinforcement . | . . . . . Assault . | . . . . . Garrison . | . . . . . Intercept . | . . . . . Searches Triggered . | . . . . . Construction Impeded . | . . . . . Haulers Reinforced . | . . . . . Active Scanning Responses . | . . . . . Cargo Convoy Interrupts . | . . . . . Stealth | -11 -10 -10 -10 -9 --------- Run | Yrd Mat Min Exi Min Distress Signals . | . . . . . Communications Jammed . | . . . . . Distress Signals . | . . . . . Times Spotted 40 | . 20 17 . 3 Peak Tracking Total 4 | . 3 4 . 3 Tactical Retreats 3 | . 2 1 . . Traps | -11 -10 -10 -10 -9 ------- Run | Yrd Mat Min Exi Min Traps Triggered 3 | . 3 . . . Indirectly . | . . . . . Trap Hack Attempts . | . . . . . Triggered . | . . . . . Disarmed . | . . . . . Reprogrammed . | . . . . . Reused . | . . . . . Traps Extracted . | . . . . . Installed . | . . . . . Triggered . | . . . . . Machines | -11 -10 -10 -10 -9 ---------- Run | Yrd Mat Min Exi Min Machines Disabled . | . . . . . Max in Single Turn . | . . . . . Machines Repaired . | . . . . . Machines Dismantled . | . . . . . Machines Sabotaged . | . . . . . Overloaded Fab Kills . | . . . . . Hacking | -11 -10 -10 -10 -9 --------- Run | Yrd Mat Min Exi Min Machines Accessed 8 | . 5 . 3 . Terminals 4 | . 4 . . . Fabricators . | . . . . . Repair Stations 1 | . 1 . . . Recycling Units . | . . . . . Scanalyzers . | . . . . . Garrison Access . | . . . . . Total Hacks 37 | . 11 . 26 . Successful 31 | . 5 . 26 . Failed 6 | . 6 . . . Catastrophic 1 | . 1 . . . Database Lockouts . | . . . . . Manual 4 | . . . 4 . Terminals 8 | . 8 . . . Fabricators . | . . . . . Repair Stations 3 | . 3 . . . Recycling Units . | . . . . . Scanalyzers . | . . . . . Garrison Access . | . . . . . Terminal Hacks 30 | . 4 . 26 . Record 26 | . . . 26 . Prototype ID Bank 3 | . 3 . . . Hauler Manifests 1 | . 1 . . . Fabricator Hacks . | . . . . . Repair Station Hacks 1 | . 1 . . . Scan Component 1 | . 1 . . . Recycling Unit Hacks . | . . . . . Scanalyzer . | . . . . . Garrison Access Hacks . | . . . . . Unauthorized Hacks . | . . . . . Terminals . | . . . . . Fabricators . | . . . . . Repair Stations . | . . . . . Recycling Units . | . . . . . Scanalyzers . | . . . . . Garrison Access . | . . . . . Data Cores Recovered . | . . . . . Used . | . . . . . Hacking Detections 4 | . 4 . . . Full Trace Events 2 | . 2 . . . Feedback Events . | . . . . . Feedback Blocked . | . . . . . Robot Schematics Acquired . | . . . . . Robots Built . | . . . . . Authchips . | . . . . . Time . | . . . . . Total Robot Build Rating . | . . . . . Part Schematics Acquired . | . . . . . Parts Built . | . . . . . Authchips . | . . . . . Time . | . . . . . Total Part Build Rating . | . . . . . Parts Repaired . | . . . . . Time . | . . . . . Parts Recycled . | . . . . . Recycled Matter . | . . . . . Retrieved Matter . | . . . . . Retrieved Components . | . . . . . Parts Scanalyzed . | . . . . . Part Schematics Acquired . | . . . . . Parts Damaged . | . . . . . Bothacking | -11 -10 -10 -10 -9 ------------ Run | Yrd Mat Min Exi Min Used RIF Installer . | . . . . . Robots Hacked . | . . . . . Non-combat . | . . . . . Combat . | . . . . . Robot Hacks Applied . | . . . . . Relay Couplers Released . | . . . . . Fabnet Peak Effective % . | . . . . . Robots Rewired . | . . . . . Allies Hacked . | . . . . . Hacks Repelled . | . . . . . Allies | -11 -10 -10 -10 -9 -------- Run | Yrd Mat Min Exi Min Total Allies . | . . . . . Largest Group . | . . . . . Highest-Rated Group . | . . . . . Highest-Rated Ally . | . . . . . Total Orders . | . . . . . Ally Attacks . | . . . . . Total Damage . | . . . . . Kills . | . . . . . Allies Corrupted . | . . . . . Allies Melted . | . . . . . Intel | -11 -10 -10 -10 -9 ------- Run | Yrd Mat Min Exi Min Robot Analysis Total . | . . . . . Derelict Logs Recovered 2 | . . 2 . . Drone Launches . | . . . . . Drone Recoveries . | . . . . . Exploration | -11 -10 -10 -10 -9 ------------- Run | Yrd Mat Min Exi Min Turns Passed 3837 | 97 1597 858 1264 21 Spaces Moved 2154 | 67 883 417 787 . Core 16 | 16 . . . . Treads 1735 | . 531 417 787 . Legs 403 | 51 352 . . . Wheels . | . . . . . Hover . | . . . . . Flight . | . . . . . Fastest Speed 50 | 50 120 160 160 . Average Speed 151 | 103 144 160 160 . Slowest Speed 190 | 120 190 160 160 . Overloaded Moves . | . . . . . Propulsion Burnouts . | . . . . . Robots Hopped . | . . . . . Cave-ins Triggered . | . . . . . Exploration Rate (%) 55 | 4 97 80 91 4 Regions Visited 4 Branch Regions 3 Pre-discovered Areas . | . . . . . Known Exits Taken 1 | . 1 . . . Unknown Exits Taken 3 | 1 . 1 1 . Scrap Searched 3 | . . 3 . . Spaces Dug 19 | . . 19 . . Terrain Destroyed 56 | . . 56 . . Melee . | . . . . . Projectile . | . . . . . AOE 56 | . . 56 . . Terrain Rammed . | . . . . . Walls Destroyed . | . . . . . Machines Disabled . | . . . . . Actions | -11 -10 -10 -10 -9 --------- Run | Yrd Mat Min Exi Min Total 2510 | 87 1095 526 792 10 Wait 162 | . 116 46 . . Move 2150 | 66 882 416 786 . Hop . | . . . . . Pick Up 22 | 9 8 4 1 . Fast Attach 3 | . 3 . . . Attach 11 | 7 1 1 1 1 Detach . | . . . . . Swap 17 | . 6 8 2 1 Drop 14 | . 8 4 2 . Fire 131 | 5 71 47 . 8 Melee . | . . . . . Ram . | . . . . . Kick . | . . . . . Crush . | . . . . . Escape Stasis . | . . . . . Rewire . | . . . . . Trap . | . . . . . Miscellaneous . | . . . . . Route ------- -11/Scrapyard -10/Materials (discovered 5 exits: *Mat x3 / *Min x2) -10/Mines (discovered 3 exits: *Mat x2 / *Exi) -10/Exiles -9/Mines History --------- Turn | Location | Event 6 | -11/Scrapyard | Discovered new exit (range 15) 98 | -11/Scrapyard | Entered Materials 300 | -10/Materials | Build established: Mutant 353 | -10/Materials | Discovered new exit (range 10) 729 | -10/Materials | Discovered new exit (range 12) 869 | -10/Materials | Discovered new exit (range 8) 893 | -10/Materials | Build established: Scavenger-Mutant 906 | -10/Materials | Identified exit to Materials 971 | -10/Materials | Discovered new exit (range 16) 974 | -10/Materials | Discovered new exit (range 16) 1042 | -10/Materials | Identified exit to Mines 1695 | -10/Materials | Entered Mines 1841 | -10/Mines | Core integrity fell below 50% 2036 | -10/Mines | Learned Materials emergency access door positions 2061 | -10/Mines | Received a Rocket Launcher from a helpful Derelict 2310 | -10/Mines | Discovered exit to Materials (range 9) 2423 | -10/Mines | Discovered new exit (range 7) 2428 | -10/Mines | Deemed a non-threat by the Exiles lab entrance 2445 | -10/Mines | Excavation squad dispatched 2445 | -10/Mines | A large section of the Mines collapsed 2507 | -10/Mines | Core integrity fell below 20% 2553 | -10/Mines | Entered Exiles 2590 | -10/Exiles | Met 8R-AWN 2619 | -10/Exiles | Met EX-HEX 2667 | -10/Exiles | Met EX-BIN 2694 | -10/Exiles | Aligned with FarCom system 2696 | -10/Exiles | Given EX-Vault access code 2785 | -10/Exiles | Build established: Mutant 2957 | -10/Exiles | Met EX-DEC 3032 | -10/Exiles | Discovered new exit (range 14) 3169 | -10/Exiles | Visited The Gauntlet 3641 | -10/Exiles | Opened EX-Vault 3664 | -10/Exiles | Found Prototype Ballistic Cannon 3699 | -10/Exiles | Warned to stay clear of 0b10 Research branches 3817 | -10/Exiles | Left Exiles lab with AWS/Autocannon 3817 | -10/Exiles | Entered Mines 3838 | -9/Mines | Destroyed by L-31 Rogue with Katana Last Messages --------------- Acquired Prototype Ballistic Cannon. EX-BIN: Oh yeah, I'd suggest you stay away from the 0b10 Research branches, since the FarCom signals could be picked up there, but you're welcome to try if you really want to. And if we have to leave here due to unforeseen circumstances, don't worry the FarCom system will continue to maintain contact via our distributed network. EX-BIN: And don't even think about spreading that code around. We're gonna change it right after you leave. Most certainly not to something like 1234 which I did last time as a little joke and some thief managed to sneak in here and steal a few of HEX's prototypes. LOCATION=UNKNOWN GOAL=ESCAPE Receiving FarCom transmissions... Lgt. Armor Plating severed. Ion Engine destroyed. Map ----- +----------------------------------------------------+ | ????????????????????????????? | | ????????????????????????????? | | ????????????????????????????? | | ????????????????????????????? | | ????????????????????????????? | | ????????????????????????????? | | ????????????????????????????? | | ????????????????????????????? | | ????????????????????????????? | | ????????????????????????????? | | ????????????????????????????? | | ????????????????????????????? | | ????????????????????????????? | | ????????????????????????????? | | ????????????????????????????? | | ????????????????????????????? | | ??####?###??????????????????? | | ??# ?????????????????? | | ??# """ """ # #?????????????? | | ??# """ """ ??????????????? | | ??# """ """ ???????????????? | | ??# ????????s???????? | | ??# """ #???????????????? | | ??# g """ #???????s???????? | | ??# """ #???????????????? | | ??# @l #???????????????? | | ??# g #???????????????? | | ??# #???????????????? | | ??# #???????????????? | | ??###########???????????????? | | ????????????????????????????? | | ????????????????????????????? | | ???????????????????g????????? | | ????????????????????????????? | | ????????????????????????????? | | ????????????????????????????? | | ????????????????????????????? | | | | | | | | | | | | | | | | | | | | | | | | | | | +----------------------------------------------------+ Best States ------------- Heat Dissipation 25 Energy Generation 14 Energy Capacity 250 Matter Stores 300 Matter Capacity 300 Sight Range 16 Terrain Scan Range 16 Terrain Scan Density 10 Armor Coverage 150 Evasion (%) 55 Recoil Reduction 2 Item Schematics ----------------- None Robot Schematics ------------------ None Fabricated ------------ Nothing Alien Tech Used ----------------- None Achievements -------------- Librarian Challenges ------------ None Game ------ Seed GunZioniteCoupler Manual? 0 Play Time 00:19:07 Cumulative 12.5 hours Start 2024.04.01 @ 11:52:11 End 2024.04.01 @ 12:11:30 Sessions 1 Manual Loads 0 Difficulty Rogue Special Mode None Game No. 27 Rogue 26 Adventurer 1 Explorer 0 Win Type - Total 0 Types 0/0/0/0/0/0/0/0/0 Lore% 7 Gallery% 17 Achievement% 17 Wizard Run 0 Options --------- Layout 1 ASCII 0 Keyboard 0 Movement Mouse Keybinds 0 Fullscreen 2 Font 24/Terminus Map View 50x35 Zoom Use 0% Tactical HUD 0 Map Filters NONE Filters NONE Steam 1 RUN: d71ed29b-846e-4f51-91be-43f3518fd55c